bitfinex-derivatives/quotes_ETHF0:USTF0_20251223
["timestamp","ask_amount","ask_price","bid_price","bid_amount"]
[1766514926655,0.16971,2947.7,2946.7,2.35304362]
[1766514926854,0.00508974,2947.9,2947.6,1.17652181]
[1766514927059,8.498,2948.2,2947.6,1.17652181]
[1766514927258,8.498,2948.2,2947.5,0.00508974]
[1766514927459,1.17652181,2947.9,2946.3,1.17652181]
[1766514927659,6.342,2947.8,2945.6,0.00339538]
[1766514927861,0.1697,2947.7,2946.5,1.17652181]
[1766514928066,3.394,2947.6,2946.7,1.17652181]
[1766514928459,0.00508974,2947.4,2946.9,0.00508974]
[1766514931358,0.00508974,2947.4,2946.9,1.18161155]
[1766514931564,0.00508974,2947.4,2946.9,4.57561155]
[1766514931957,3.39815385,2948.1,2946.9,3.39908974]
[1766514932164,3.39815385,2948.1,2947.2,1.17652181]
[1766514932359,1.22135879,2950.0,2948.0,1.17652181]
[1766514932561,0.16959,2949.7,2948.7,1.17652181]
[1766514932964,0.00508974,2949.5,2948.9,1.18161155]
[1766514933164,0.00508974,2949.5,2948.9,4.57561155]
[1766514933362,0.00863927,2949.5,2948.9,3.40323809]
[1766514933662,0.00863927,2949.5,2948.9,0.00923809]
[1766514933861,0.00863927,2949.5,2948.2,1.17652181]
[1766514933862,1.17652181,2949.4,2948.2,1.17652181]
[1766514934062,1.17652181,2949.4,2948.3,3.394]
[1766514934274,2.34,2949.4,2948.6,1.17652181]
[1766514934459,2.34,2949.4,2948.6,4.57052181]
[1766514934658,2.34,2949.4,2948.7,3.394]
[1766514934855,2.34,2949.4,2948.8,0.00508974]
[1766514936164,2.34,2949.4,2948.8,1e-08]
[1766514936360,2.34,2949.4,2948.0,1.81204424]
[1766514937071,2.34,2949.4,2948.1,3.393]
[1766514937272,2.34,2949.4,2946.4,3.397]
[1766514937273,2.50961,2949.4,2947.7,1.81204424]
[1766514937475,0.16962,2949.2,2948.3,0.00508974]
[1766514937765,3.393,2949.1,2948.1,3.393]
[1766514937963,44.193,2949.1,2948.1,3.393]
[1766514938164,44.36262,2949.1,2947.7,0.00302263]
[1766514938366,44.36262,2949.1,2947.8,3.393]
[1766514938567,0.16964,2948.9,2947.7,0.00302263]
[1766514938760,0.00863927,2949.5,2948.4,1.81204424]
[1766514939079,0.16955,2950.4,2948.8,1.81204424]
[1766514939286,0.16955,2950.4,2948.9,3.393]
[1766514939867,0.16955,2950.4,2948.8,1.81204424]
[1766514939868,1.98160424,2950.3,2948.2,1.81204424]
[1766514940067,14.55456,2950.2,2948.2,1.81204424]
[1766514940272,0.00508974,2949.5,2949.0,0.00508974]
[1766514940770,0.01372901,2949.5,2949.0,1e-08]
[1766514941160,0.00863926,2949.3,2948.5,3.393]
[1766514941364,3.393,2949.4,2947.7,0.00302263]
[1766514941365,3.393,2949.4,2948.4,3.393]
[1766514941560,3.393,2949.4,2948.3,3.393]
[1766514941768,40.8,2949.3,2947.7,1.81506687]
[1766514942069,40.8,2949.3,2948.2,0.00508973]
[1766514942371,40.8,2949.3,2948.3,3.393]
[1766514942763,0.16957,2950.1,2949.2,2.05421129]
[1766514942966,0.00388517,2950.3,2949.3,3.393]
[1766514943266,0.00388517,2950.3,2949.4,3.393]
[1766514943471,3.56253,2950.8,2949.5,3.393]
[1766514944172,0.00508974,2950.4,2949.0,2.05421129]
[1766514944373,0.00508974,2950.4,2949.1,15.111]
[1766514944573,0.00803544,2950.4,2949.2,9.389]
[1766514944772,0.00803544,2950.4,2949.3,3.392]
[1766514945071,0.00803544,2950.4,2948.7,2.05421129]
[1766514945274,0.00803544,2950.4,2949.3,0.00508973]
[1766514945471,0.00803544,2950.4,2949.4,3.392]
[1766514945664,3.18403544,2950.4,2949.3,0.00508973]
[1766514946167,0.16956,2950.3,2949.3,0.00508973]
[1766514946378,3.56156,2950.2,2949.3,1e-08]
[1766514948275,1.26818468,2952.2,2949.7,2.05421129]
[1766514948276,0.16952,2950.9,2949.7,2.05421129]
[1766514948474,3.392,2951.4,2949.8,3.392]
[1766514948666,0.16948,2951.6,2949.8,3.392]
[1766514948868,0.16948,2951.6,2949.7,2.05421129]
[1766514949272,0.16949,2951.4,2949.8,13.114]
[1766514949476,0.00508974,2950.9,2949.8,13.11769872]
[1766514949675,0.00508974,2950.9,2949.9,9.387]
[1766514949871,3.39708974,2950.9,2949.8,0.00369872]
[1766514950077,3.39708974,2950.9,2950.0,3.392]
[1766514950270,0.16954,2950.5,2949.3,1e-08]
[1766514950476,3.392,2950.4,2949.3,1e-08]
[1766514951073,0.16954,2950.5,2949.4,3.392]
[1766514951377,0.00508974,2950.9,2949.5,2.05421129]
[1766514951770,0.00508974,2950.9,2949.4,0.00333875]
[1766514951971,2.05930103,2950.9,2949.4,3.39433875]
[1766514952279,0.16955,2950.3,2949.4,3.39433875]
[1766514952466,0.16957,2950.1,2949.4,0.00333875]
[1766514952667,3.391,2950.0,2947.9,8.479]
[1766514952975,50.529,2949.9,2948.2,3.391]
[1766514953571,0.00508974,2949.3,2948.8,0.00508974]
[1766514953778,0.00908752,2949.3,2948.8,3.39608974]
[1766514953973,0.00908752,2949.3,2948.8,1e-08]
[1766514954283,3.391,2949.2,2948.2,0.0034642]
[1766514954580,3.391,2949.2,2948.3,6.78200001]
[1766514955774,3.391,2949.2,2948.3,3.39100001]
[1766514955984,3.391,2949.2,2948.4,3.391]
[1766514957078,0.00908752,2949.3,2948.7,3.39100001]
[1766514957284,0.00908752,2949.3,2948.8,3.392]
[1766514960275,3.40108752,2949.3,2948.5,3.392]
[1766514960479,9.73908752,2949.3,2947.1,2.05421129]
[1766514960680,0.16963,2949.0,2947.2,11.872]
[1766514960876,3.392,2948.9,2947.3,1.253]
[1766514961279,3.392,2948.9,2947.8,3.39100001]
[1766514961783,3.392,2948.9,2947.9,6.78300001]
[1766514962279,3.392,2948.9,2947.9,3.392]
[1766514962479,3.392,2948.9,2947.8,0.00355147]
[1766514962679,0.16965,2948.7,2947.8,0.00355147]
[1766514963080,40.8,2949.9,2947.8,0.00355147]
[1766514963081,0.16956,2950.2,2947.8,0.00355147]
[1766514963281,0.16956,2950.2,2948.6,2.05421129]
[1766514963581,0.16956,2950.2,2948.7,14.022]
[1766514963883,5.849,2951.0,2948.7,14.022]
[1766514963884,3.392,2950.8,2949.2,2.05421129]
[1766514964077,3.392,2950.8,2949.3,9.388]
[1766514964281,3.39489474,2950.8,2949.8,0.00508974]
[1766514964584,3.39489474,2950.8,2949.9,3.392]
[1766514964585,0.00508974,2950.3,2949.9,3.392]
[1766514964786,0.00508974,2950.3,2949.9,3.39551557]
[1766514965780,0.00508974,2950.3,2949.9,0.00351557]
[1766514966089,0.00508974,2950.3,2949.5,3.392]
[1766514966278,0.00508974,2950.3,2949.7,1.81811249]
[1766514966679,0.00508974,2950.3,2949.6,3.392]
[1766514966889,0.00508974,2950.3,2948.5,2.05421129]
[1766514967183,0.00508974,2950.3,2949.3,0.00386502]
[1766514967386,0.00508974,2950.3,2949.4,3.391]
[1766514968276,0.00289474,2950.8,2949.4,3.391]
[1766514969487,0.00289474,2950.8,2949.8,0.00508974]
[1766514969688,0.00289474,2950.8,2949.9,3.391]
[1766514970487,0.00508974,2950.6,2949.9,3.391]
[1766514972891,0.00289474,2950.8,2949.9,3.391]
[1766514973291,2.22663603,2950.8,2949.3,0.00386502]
[1766514973587,0.17242474,2950.8,2949.4,3.39608974]
[1766514973794,0.00289474,2950.8,2949.4,3.39608974]
[1766514973987,0.00289474,2950.8,2949.6,2.05421129]
[1766514974186,0.00289474,2950.8,2949.8,0.00508974]
[1766514974386,0.00508974,2950.6,2950.0,0.00508974]
[1766514974591,0.00508974,2950.6,2950.1,3.391]
[1766514974790,0.00508974,2950.6,2950.0,0.00508974]
[1766514975193,0.00508974,2950.6,2950.1,3.391]
[1766514977096,0.00289474,2950.8,2950.1,3.391]
[1766514977287,0.00289474,2950.8,2950.0,5.99808974]
[1766514977486,0.00289474,2950.8,2950.1,3.391]
[1766514978095,0.00508974,2950.7,2950.1,3.391]
[1766514979599,0.00508974,2950.7,2950.2,0.00508974]
[1766514980595,0.16954,2950.6,2949.8,3.391]
[1766514980799,3.391,2950.5,2949.8,3.391]
[1766514981491,3.391,2950.5,2949.9,0.00508974]
[1766514981795,0.16956,2950.3,2949.4,3.391]
[1766514982000,3.391,2950.2,2949.4,3.391]
[1766514982692,3.391,2950.2,2949.5,0.00508974]
[1766514984802,3.391,2950.2,2947.5,0.11947093]
[1766514984998,0.16959,2949.7,2948.6,3.41013424]
[1766514985303,3.391,2949.6,2948.7,3.391]
[1766514985504,3.391,2949.6,2947.6,37.32113424]
[1766514985505,3.391,2949.6,2948.3,5.992]
[1766514985702,3.391,2949.6,2947.9,2.05421129]
[1766514985703,3.56059,2949.6,2947.9,2.05421129]
[1766514985902,0.00508974,2949.0,2948.0,15.533]
[1766514986406,3.56059,2949.6,2948.0,15.533]
[1766514987392,0.00508974,2949.1,2948.5,0.00508974]
[1766514987596,0.00508974,2949.1,2948.6,3.391]
[1766514989105,3.56059,2949.6,2948.6,3.391]
[1766514990005,0.00508974,2949.4,2948.6,3.391]
[1766514991008,0.16959,2949.6,2948.6,9.383]
[1766514991606,0.1696,2949.5,2948.5,0.00508974]
[1766514991806,3.391,2949.4,2948.6,3.391]
[1766514992001,0.00508974,2949.3,2948.6,3.391]
[1766514992200,0.00508974,2949.3,2948.6,6.80113424]
[1766514993411,0.00508974,2949.3,2948.6,3.41013424]
[1766514993611,0.17469974,2949.3,2948.5,1.02672398]
[1766514993806,0.00508974,2949.3,2948.3,3.391]
[1766514994007,0.00508974,2949.3,2947.9,0.00301155]
[1766514994309,0.16964,2948.9,2948.0,3.391]
[1766514994503,3.391,2948.8,2948.0,3.391]
[1766514994704,3.391,2948.8,2948.2,0.00508974]
[1766514996307,3.391,2948.8,2948.1,0.81802755]
[1766514996910,0.16965,2948.7,2947.9,0.00301155]
[1766514997208,0.16965,2948.7,2946.8,2.05421129]
[1766514997209,0.16966,2948.4,2947.5,3.51147093]
[1766514997416,3.56166,2948.4,2947.5,3.51147093]
[1766514998210,3.56166,2948.4,2947.5,3.51576269]
[1766514998716,0.16968,2948.1,2947.2,3.392]
[1766514998911,3.56169,2948.0,2947.1,3.392]
[1766514999105,0.00508974,2947.8,2947.1,3.392]
[1766514999302,0.00508974,2947.8,2947.2,3.392]
[1766514999712,0.00508974,2947.8,2947.0,3.392]
[1766514999914,0.00508974,2947.8,2947.2,0.0032127]
[1766515001708,0.00508974,2947.8,2944.0,5.96330962]
[1766515001909,0.00508974,2947.8,2946.7,3.82989999]
[1766515002111,0.1697,2947.7,2946.7,3.82989999]
[1766515002311,0.16972,2947.5,2946.7,3.392]
[1766515002817,3.392,2947.6,2946.7,3.39583493]
[1766515003022,0.16973,2947.3,2946.7,3.39583493]
[1766515003208,3.56173,2947.3,2946.7,3.39583493]
[1766515003410,3.56173,2947.3,2946.7,0.00383493]
[1766515010526,3.56173,2947.3,2946.3,3.393]
[1766515011414,3.56173,2947.3,2946.3,3.39657647]
[1766515012626,5.8,2947.7,2946.3,3.39657647]
[1766515014126,5.9697,2947.7,2946.3,3.39657647]
[1766515015425,5.9697,2947.7,2946.5,1.81459469]
[1766515015621,5.9697,2947.7,2946.6,3.368]
[1766515015822,5.9697,2947.7,2946.6,6.762]
[1766515016219,5.9697,2947.7,2946.3,8.48857647]
[1766515016220,5.9697,2947.7,2946.3,0.00357647]
[1766515016419,5.9697,2947.7,2946.6,5.995]
[1766515016620,5.9697,2947.7,2946.7,3.394]
[1766515017719,5.9697,2947.7,2946.4,0.4849]
[1766515017920,5.9697,2947.7,2946.6,5.995]
[1766515019721,5.9697,2947.7,2946.4,0.4849]
[1766515019918,5.9697,2947.7,2946.5,4.034]
[1766515020718,8.485,2949.3,2947.1,1.81459469]
[1766515020925,0.16965,2948.6,2947.2,1.169]
[1766515021124,0.16966,2948.5,2947.0,0.60439999]
[1766515021320,0.16966,2948.5,2946.8,1.81459469]
[1766515021321,3.56366,2948.4,2946.8,1.81459469]
[1766515021626,2.56e-06,2948.7,2948.2,1.81459469]
[1766515021928,0.6044,2949.3,2948.3,3.394]
[1766515022232,3.394,2949.5,2948.3,3.394]
[1766515022715,0.00508974,2949.2,2948.3,3.394]
[1766515025425,3.39808974,2949.2,2948.4,3.393]
[1766515025629,3.39808974,2949.2,2948.4,3.395595]
[1766515025825,0.00508974,2949.2,2948.4,5.21018969]
[1766515026023,0.00307856,2949.5,2948.4,5.21018969]
[1766515026225,0.00307856,2949.5,2948.4,3.395595]
[1766515026425,0.00307856,2949.5,2948.4,5.21018969]
[1766515027024,0.00508974,2949.2,2948.4,5.21018969]
[1766515027530,0.00508974,2949.2,2948.4,3.395595]
[1766515027725,0.00508974,2949.2,2948.5,9.387]
[1766515029827,0.00508974,2949.2,2948.4,0.002595]
[1766515030430,0.00508974,2949.2,2948.5,3.393]
[1766515031126,1.81459469,2949.8,2948.5,3.393]
[1766515031127,0.16956,2950.2,2948.6,1.81459469]
[1766515031328,0.16956,2950.2,2948.7,8.482]
[1766515031529,3.393,2950.1,2948.8,6.775]
[1766515031937,0.16956,2950.2,2949.1,1.81459469]
[1766515032123,0.00508974,2949.9,2949.2,3.393]
[1766515032325,0.00508974,2949.9,2949.0,0.44989999]
[1766515032622,0.00508974,2949.9,2949.0,0.839]
[1766515032829,0.00508974,2949.9,2949.1,3.392]
[1766515033228,0.00508974,2949.9,2948.9,5.992]
[1766515033428,0.00508974,2949.9,2949.0,3.392]
[1766515034026,0.00508974,2949.9,2948.9,5.992]
[1766515034227,0.00508974,2949.9,2949.0,3.392]
[1766515034422,0.00508974,2949.9,2948.9,5.992]
[1766515034633,0.00508974,2949.9,2949.1,3.392]
[1766515034828,0.16952,2951.0,2949.7,1.81459469]
[1766515035038,0.16952,2951.0,2949.8,4.569]
[1766515035231,3.56152,2951.0,2949.8,4.569]
[1766515035935,0.00508974,2950.7,2950.1,0.00508974]
[1766515036132,0.00508974,2950.7,2950.2,3.392]
[1766515038932,0.16948,2951.6,2950.3,1.81459469]
[1766515039136,0.16948,2951.6,2950.4,1.955]
[1766515039339,3.56148,2951.6,2950.5,3.392]
[1766515039930,0.00339321,2951.3,2950.5,0.00334549]
[1766515040439,0.00339321,2951.3,2950.6,3.391]
[1766515041035,3.56389321,2951.3,2950.3,3.391]
[1766515041341,0.1695,2951.2,2950.1,0.00508974]
[1766515041635,0.1695,2951.2,2950.2,3.391]
[1766515042041,0.1695,2951.2,2950.2,3.39383181]
[1766515042733,3.39516766,2951.6,2950.3,1.81459469]
[1766515042933,0.00416766,2951.6,2950.2,3.39383181]
[1766515043134,3.391,2951.5,2950.2,3.39383181]
[1766515043339,3.391,2951.5,2950.3,1.81459469]
[1766515043741,0.00416766,2951.6,2950.3,1.81459469]
[1766515044147,0.00416766,2951.6,2950.4,8.478]
[1766515044341,0.00416766,2951.6,2950.5,6.447]
[1766515045942,0.00416766,2951.6,2950.5,5.988]
[1766515046243,1.81459469,2951.3,2950.2,3.39383181]
[1766515046547,3.391,2951.2,2950.2,3.39383181]
[1766515047236,3.391,2951.2,2950.3,3.391]
[1766515047637,3.391,2951.2,2950.2,0.00283181]
[1766515047948,3.391,2951.2,2950.3,3.39]
[1766515048242,0.00508973,2951.0,2949.9,0.3895]
[1766515048443,0.00508973,2951.0,2950.0,3.39]
[1766515048444,3.39,2950.9,2950.0,3.39]
[1766515049439,3.39,2950.9,2950.2,0.00508974]
[1766515050844,3.39,2950.9,2950.2,0.00334293]
[1766515051643,0.16953,2950.8,2949.0,1.81459469]
[1766515051839,0.16953,2950.8,2948.7,33.908]
[1766515051840,0.16954,2950.6,2949.1,17.86292155]
[1766515052042,3.39,2950.5,2949.2,3.39]
[1766515052242,3.39,2950.5,2949.2,4.2131]
[1766515052547,3.39,2950.5,2949.2,3.39]
[1766515052744,3.39,2950.5,2949.6,0.00508974]
[1766515053742,3.39,2950.5,2949.6,3.39508974]
[1766515056951,3.39,2950.5,2949.6,3.40301129]
[1766515057745,0.16956,2950.3,2949.6,0.00508974]
[1766515057953,3.39,2950.2,2949.6,0.00508974]
[1766515058354,3.39,2950.2,2949.6,0.01301129]
[1766515058860,3.39,2950.2,2949.7,0.00792155]
[1766515062457,3.39,2950.2,2949.7,3.39792155]
[1766515063345,0.16956,2950.3,2949.7,3.39792155]
[1766515063748,3.391,2950.4,2949.2,0.00368789]
[1766515064445,0.16958,2949.9,2949.2,0.00368789]
[1766515064658,3.56058,2949.9,2949.2,0.00368789]
[1766515064959,3.56058,2949.9,2949.3,0.00508974]
[1766515068962,2.73748,2949.9,2949.4,3.391]
[1766515069160,3.391,2950.1,2949.4,3.391]
[1766515069368,0.16954,2950.5,2949.4,3.391]
[1766515069565,0.20190001,2950.3,2949.4,3.391]
[1766515070068,3.56055,2950.4,2949.4,3.391]
[1766515071064,0.16956,2950.2,2949.3,0.00508974]
[1766515071268,3.56057,2950.1,2949.3,3.39608974]
[1766515071566,3.391,2950.0,2949.3,3.39608974]
[1766515072261,3.391,2950.0,2949.3,0.00508974]
[1766515072468,3.391,2950.0,2948.2,0.16967]
[1766515072673,3.391,2950.0,2948.4,13.201]
[1766515073363,0.16958,2949.9,2948.3,0.20179999]
[1766515073561,0.00508974,2949.4,2948.8,0.00508974]
[1766515073863,0.00766432,2949.4,2948.8,0.00508974]
[1766515074064,0.00766432,2949.4,2948.4,0.1542]
[1766515074260,3.39866432,2949.4,2948.4,3.391]
[1766515075162,3.39866432,2949.4,2948.6,0.00508974]
[1766515075558,3.56827432,2949.4,2948.6,0.00508974]
[1766515079869,3.56827432,2949.4,2948.7,3.391]
[1766515081262,3.39866432,2949.4,2948.7,3.391]
[1766515081463,0.00766432,2949.4,2948.7,3.391]
[1766515084066,0.00766432,2949.4,2948.6,0.00508974]
[1766515084263,0.17727432,2949.4,2948.7,3.391]
[1766515084463,3.56827432,2949.4,2948.7,3.391]
[1766515085363,3.56827432,2949.4,2948.6,0.00508974]
[1766515085566,3.56827432,2949.4,2948.7,3.391]
[1766515086168,3.56827432,2949.4,2948.6,0.00508974]
[1766515086373,3.56827432,2949.4,2948.7,3.391]
[1766515089472,0.16963,2949.1,2948.6,0.00508974]
[1766515089673,1.17449789,2948.9,2948.3,3.39631582]
[1766515090175,1.17449789,2948.9,2948.3,0.00431582]
[1766515090379,1.17449789,2948.9,2948.1,3.392]
[1766515090581,1.17449789,2948.9,2948.2,0.00339322]
[1766515091369,1.34412789,2948.9,2948.2,3.39888607]
[1766515091580,0.16963,2948.9,2948.2,3.39888607]
[1766515097284,0.16963,2948.9,2948.2,0.00688607]
[1766515097481,1.34412789,2948.9,2948.2,0.00688607]
[1766515098578,0.16964,2948.8,2947.3,1.17449789]
[1766515098782,1.17449789,2948.6,2947.4,4.915]
[1766515098986,3.392,2948.7,2947.5,3.392]
[1766515099285,3.392,2948.7,2947.6,3.392]
[1766515099693,3.392,2948.7,2947.6,3.39546701]
[1766515100297,3.392,2948.7,2947.6,0.00346701]
[1766515100498,3.392,2948.7,2947.7,3.392]
[1766515100703,0.16964,2948.8,2948.0,1.17449789]
[1766515100897,3.392,2949.3,2948.3,1.17449789]
[1766515101200,3.392,2949.3,2948.4,3.392]
[1766515101398,0.17727432,2949.4,2948.4,3.392]
[1766515101801,0.17727432,2949.4,2948.6,1.17449789]
[1766515102003,0.17727432,2949.4,2948.7,3.392]
[1766515102194,0.17727432,2949.4,2948.8,3.392]
[1766515102594,0.17727432,2949.4,2948.6,0.0254]
[1766515102793,3.56161,2949.3,2948.5,3.392]
[1766515103896,0.16961,2949.3,2948.5,3.392]
[1766515104500,1e-05,2949.3,2948.5,3.392]
[1766515105702,0.00766432,2949.4,2948.5,3.392]
[1766515110297,1.4408,2949.8,2948.5,3.392]
[1766515110498,0.16954,2950.5,2949.0,2.0532464]
[1766515110700,0.16954,2950.5,2949.1,15.352]
[1766515111403,0.00508974,2950.1,2949.5,0.00508973]
[1766515112202,0.00508974,2950.1,2949.2,3.392]
[1766515114004,0.00508974,2950.1,2949.1,0.0887]
[1766515114209,0.00508974,2950.1,2949.2,3.391]
[1766515114906,0.00508974,2950.1,2948.3,2.0532464]
[1766515115107,0.00508974,2950.1,2948.4,17.859]
[1766515115511,0.17465974,2950.1,2948.5,17.859]
[1766515115813,0.16957,2950.0,2948.5,17.859]
[1766515116209,3.56058,2949.9,2947.6,0.00346701]
[1766515116407,5.514,2949.9,2947.7,33.918]
[1766515116610,5.514,2949.9,2947.8,3.422]
[1766515116804,40.8,2949.8,2947.8,3.422]
[1766515117213,40.8,2949.8,2947.9,17.861]
[1766515117509,0.16959,2949.7,2948.0,17.861]
[1766515117818,3.391,2949.6,2948.0,17.861]
[1766515119612,3.391,2949.6,2948.1,5.996]
[1766515119805,3.391,2949.6,2948.1,17.866]
[1766515120010,3.56059,2949.6,2948.2,5.996]
[1766515120205,3.56059,2949.6,2948.2,9.387]
[1766515120519,3.56059,2949.6,2948.3,9.388]
[1766515120718,3.56059,2949.6,2948.0,0.0888]
[1766515120916,3.56059,2949.6,2948.1,8.533]
[1766515121214,3.56059,2949.6,2948.1,11.924]
[1766515121412,3.56059,2949.6,2948.2,9.388]
[1766515123220,6.323,2949.5,2948.2,9.388]
[1766515123815,6.323,2949.5,2948.3,9.388]
[1766515124125,6.323,2949.5,2948.4,3.391]
[1766515124618,6.323,2949.5,2948.3,0.0886]
[1766515124820,6.323,2949.5,2948.4,9.389]
[1766515128226,6.4926,2949.5,2948.4,9.389]
[1766515136035,6.323,2949.5,2948.4,9.389]
[1766515136227,3.56665974,2950.1,2948.4,11.20128146]
[1766515136427,1.81228146,2949.9,2948.3,0.0718]
[1766515136635,3.392,2949.8,2948.4,9.388]
[1766515137532,0.16959,2949.7,2948.4,9.388]
[1766515139230,1.82247683,2952.2,2950.4,0.16954]
[1766515139533,0.16938,2953.4,2951.5,1.81228146]
[1766515139732,0.16939,2953.2,2950.7,0.16953]
[1766515139925,0.16939,2953.2,2950.5,6.94804437]
[1766515139926,1.81228146,2953.0,2950.5,3.397]
[1766515140132,0.0050788,2952.0,2950.5,0.00301493]
[1766515140432,1.81228146,2951.9,2950.5,0.00301493]
[1766515140646,1.81228146,2951.5,2950.6,3.391]
[1766515140839,3.391,2951.4,2950.6,3.391]
[1766515141524,3.391,2951.4,2950.5,0.17711493]
[1766515141737,3.391,2951.4,2950.5,0.00301493]
[1766515142037,3.391,2951.4,2950.6,3.876]
[1766515142234,3.391,2951.4,2950.6,5.995]
[1766515142426,3.391,2951.4,2950.7,3.391]
[1766515143130,3.391,2951.4,2950.5,0.00301493]
[1766515143333,3.391,2951.4,2950.5,3.39401493]
[1766515145434,3.391,2951.4,2950.5,0.00301493]
[1766515145634,3.391,2951.4,2950.6,3.391]
[1766515147242,3.391,2951.4,2950.5,0.00301493]
[1766515149532,3.391,2951.4,2948.1,2.99239775]
[1766515149731,3.56049,2951.4,2949.6,1.81228146]
[1766515149937,3.56049,2951.4,2950.0,1.81228146]
[1766515150138,3.56049,2951.4,2950.1,3.39]
[1766515150746,3.56049,2951.4,2950.1,3.39273429]
[1766515152640,3.56049,2951.4,2950.1,0.00273429]
[1766515152842,3.56049,2951.4,2950.2,3.39]
[1766515153946,3.56049,2951.4,2950.1,0.00273429]
[1766515154149,0.1695,2951.2,2950.2,3.39]
[1766515154446,3.39,2951.1,2950.2,3.39]
[1766515154747,3.39,2951.1,2950.3,0.1436]
[1766515155245,3.39,2951.1,2950.2,3.39]
[1766515155840,40.8,2951.0,2950.1,0.00273429]
[1766515156040,40.8,2951.0,2950.1,3.39273429]
[1766515156836,0.16953,2950.8,2950.1,3.429e-05]
[1766515157042,3.55953,2950.7,2949.7,3.39]
[1766515157341,0.0050788,2950.5,2949.7,3.39]
[1766515157541,3.39,2950.4,2949.7,3.39]
[1766515157742,0.16955,2950.3,2948.9,8.476]
[1766515158051,1.17405822,2950.2,2949.3,0.1741]
[1766515158342,1.17405822,2950.2,2949.0,10.55605822]
[1766515158343,3.39,2950.1,2949.4,3.39]
[1766515158847,3.39,2950.1,2949.6,1.17405822]
[1766515159146,0.17310698,2950.3,2949.4,4.56405822]
[1766515160739,0.17310698,2950.3,2949.6,1.17405822]
[1766515161233,0.17310698,2950.3,2949.6,3.39]
[1766515161439,3.39,2950.4,2949.9,1.17405822]
[1766515161745,0.0050788,2950.5,2949.9,4.56405822]
[1766515162148,0.0050788,2950.5,2949.7,0.1739]
[1766515162348,0.0050788,2950.5,2949.8,4.56405822]
[1766515162537,0.00748137,2950.5,2949.8,4.56405822]
[1766515166051,1.18153959,2950.5,2949.9,3.39]
[1766515166251,1.17405822,2950.3,2949.4,0.071]
[1766515166454,1.17405822,2950.3,2949.5,3.39]
[1766515167247,3.5606,2950.4,2949.4,0.071]
[1766515167449,3.39,2950.4,2949.5,3.39]
[1766515168852,0.16956,2950.3,2949.4,0.071]
[1766515169042,1.34361822,2950.2,2949.4,3.461]
[1766515169246,3.39,2950.1,2949.4,3.461]
[1766515169447,3.2464,2950.1,2949.4,3.461]
[1766515169741,3.2464,2950.1,2949.4,0.071]
[1766515170142,1.17405822,2950.0,2949.0,1.17405822]
[1766515170359,1.17405822,2950.0,2949.1,3.39]
[1766515172356,1.17405822,2950.0,2949.2,3.391]
[1766515173753,0.16958,2949.9,2948.9,0.1774782]
[1766515173953,4.56505822,2949.8,2949.0,3.391]
[1766515174155,3.391,2949.8,2949.0,3.391]
[1766515174349,3.391,2949.8,2949.1,1.17405822]
[1766515174754,4.56505822,2949.8,2949.0,3.391]
[1766515175051,4.56505822,2949.8,2948.9,0.0039782]
[1766515175244,1.17405822,2949.4,2948.9,0.0039782]
[1766515175444,4.56505822,2949.4,2948.9,0.0039782]
[1766515175852,3.391,2949.4,2948.9,0.0039782]
[1766515177758,3.391,2949.4,2948.7,3.391]
[1766515178557,3.391,2949.4,2948.7,3.39346489]
[1766515179356,3.391,2949.4,2946.2,2.99239775]
[1766515179357,1.8121193,2949.0,2946.2,2.99239775]
[1766515179556,40.8,2949.8,2947.5,1.8121193]
[1766515179855,40.8,2949.8,2946.3,5.77155692]
[1766515179856,0.16959,2949.6,2947.9,1.8121193]
[1766515180063,0.16959,2949.6,2948.3,1.8121193]
[1766515180355,0.16959,2949.6,2948.3,3.39346403]
[1766515180661,0.00508751,2949.2,2948.7,0.00508751]
[1766515180956,3.391,2949.1,2948.7,0.00508751]
[1766515183657,0.00508751,2949.2,2948.7,0.00508751]
[1766515183962,3.56059,2949.6,2948.8,3.391]
[1766515184157,6.32,2949.9,2948.8,3.391]
[1766515184158,0.16955,2950.4,2948.8,3.391]
[1766515184363,18.35955,2950.3,2948.8,3.391]
[1766515184762,0.00508751,2949.8,2948.8,3.391]
[1766515184964,3.39608751,2949.8,2948.8,3.391]
[1766515186771,0.16959,2949.7,2948.7,0.00508751]
[1766515187082,6.48959,2949.7,2948.7,0.00508751]
[1766515187276,6.48959,2949.7,2948.7,3.39608751]
[1766515187761,6.32,2949.7,2948.7,3.39608751]
[1766515187962,0.1696,2949.5,2948.3,0.00246403]
[1766515188264,3.391,2949.4,2948.3,0.00246403]
[1766515188465,3.56061,2949.4,2948.4,3.391]
[1766515188967,3.56061,2949.4,2948.6,0.00508751]
[1766515189861,0.16961,2949.4,2948.6,0.00508751]
[1766515190077,3.391,2949.7,2948.7,3.391]
[1766515191862,3.56059,2949.7,2948.7,3.391]
[1766515192067,3.391,2949.7,2948.6,0.00508751]
[1766515192267,3.391,2949.7,2948.7,3.392]
[1766515192467,3.391,2949.7,2948.6,0.00508751]
[1766515192667,3.391,2949.7,2948.6,3.39708751]
[1766515192871,3.391,2949.7,2948.6,0.00508751]
[1766515192872,0.16962,2949.3,2948.6,0.00508751]
[1766515193069,3.392,2949.2,2948.4,3.392]
[1766515193675,3.392,2949.2,2947.8,8.48]
[1766515193676,0.16964,2948.8,2947.8,3.392]
[1766515193875,0.16964,2948.8,2947.4,17.47310608]
[1766515193876,8.27764,2948.8,2947.4,17.47310608]
[1766515194170,0.16965,2948.7,2947.4,11.48010608]